[Event "Veteran-SM 65+ 2025"]
[Site "Uppsala, Sweden"]
[Date "2025.07.02"]
[Round "5.2"]
[White "Marttala, Thomas"]
[Black "Wedin, Svante"]
[Result "1-0"]
[TimeControl "90 min for 40 move + 30 min with an increment of 30 sec starting move 1"]
[WhiteFideId "1701118"]
[BlackFideId "1711989"]
[WhiteElo "2123"]
[BlackElo "1864"]

1. e4 {[%clk 01:30:43]} {[%emt 00:00:16]} c5 {[%clk 01:29:49]} {[%emt
00:01:13]} 2. Nc3 {[%clk 01:29:22]} {[%emt 00:01:51]} Nc6 {[%clk 01:29:06]}
{[%emt 00:01:13]} 3. f4 {[%clk 01:28:58]} {[%emt 00:00:53]} g6 {[%clk
01:26:29]} {[%emt 00:03:07]} 4. Nf3 {[%clk 01:28:24]} {[%emt 00:01:04]} Bg7
{[%clk 01:26:47]} {[%emt 00:00:12]} 5. Bc4 {[%clk 01:27:41]} {[%emt 00:01:13]}
e6 {[%clk 01:27:06]} {[%emt 00:00:11]} 6. O-O {[%clk 01:23:47]} {[%emt
00:04:24]} Nge7 {[%clk 01:27:32]} {[%emt 00:00:05]} 7. d3 {[%clk 01:22:33]}
{[%emt 00:01:43]} O-O {[%clk 01:27:47]} {[%emt 00:00:16]} 8. Qe1 {[%clk
01:20:55]} {[%emt 00:02:07]} d5 {[%clk 01:18:19]} {[%emt 00:09:59]} 9. Bb3
{[%clk 01:20:48]} {[%emt 00:00:36]} a6 {[%clk 01:16:34]} {[%emt 00:02:16]} 10.
a4 {[%clk 01:18:52]} {[%emt 00:02:26]} Rb8 {[%clk 01:14:38]} {[%emt 00:02:26]}
11. f5 {[%clk 00:54:28]} {[%emt 00:24:53]} gxf5 {[%clk 01:11:20]} {[%emt
00:03:48]} 12. Qh4 {[%clk 00:52:56]} {[%emt 00:02:01]} b5 {[%clk 01:02:03]}
{[%emt 00:09:48]} 13. Bh6 {[%clk 00:39:32]} {[%emt 00:13:53]} f6 {[%clk
00:54:04]} {[%emt 00:08:30]} 14. exd5 {[%clk 00:38:58]} {[%emt 00:01:04]} exd5
{[%clk 00:53:12]} {[%emt 00:01:22]} 15. Qg3 {[%clk 00:39:00]} {[%emt 00:00:27]}
Rf7 {[%clk 00:53:14]} {[%emt 00:00:28]} 16. axb5 {[%clk 00:33:10]} {[%emt
00:06:20]} axb5 {[%clk 00:52:53]} {[%emt 00:00:52]} 17. Nxd5 {[%clk 00:27:28]}
{[%emt 00:06:12]} Nxd5 {[%clk 00:50:42]} {[%emt 00:02:41]} 18. Rfe1 {[%clk
00:27:18]} {[%emt 00:00:39]} Bb7 {[%clk 00:44:44]} {[%emt 00:06:29]} 19. Re6
{[%clk 00:21:44]} {[%emt 00:06:04]} Ne5 {[%clk 00:39:08]} {[%emt 00:06:07]} 20.
Nxe5 {[%clk 00:18:02]} {[%emt 00:04:11]} fxe5 {[%clk 00:39:25]} {[%emt
00:00:13]} 21. Bxg7 {[%clk 00:18:11]} {[%emt 00:00:20]} Rxg7 {[%clk 00:38:59]}
{[%emt 00:00:56]} 22. Qxe5 {[%clk 00:18:28]} {[%emt 00:00:13]} c4 {[%clk
00:29:15]} {[%emt 00:10:14]} 23. dxc4 {[%clk 00:14:30]} {[%emt 00:04:27]} Rxg2+
{[%clk 00:28:10]} {[%emt 00:01:36]} 24. Kf1 {[%clk 00:10:44]} {[%emt 00:04:16]}
Nc7 {[%clk 00:26:22]} {[%emt 00:02:19]} 25. Rd6 {[%clk 00:09:33]} {[%emt
00:01:40]} Rd2 {[%clk 00:10:11]} {[%emt 00:16:41]} 26. cxb5+ {[%clk 00:08:00]}
{[%emt 00:02:02]} Kf8 {[%clk 00:10:32]} {[%emt 00:00:10]} 27. Qh8+ {[%clk
00:07:48]} {[%emt 00:00:42]} Ke7 {[%clk 00:10:46]} {[%emt 00:00:16]} 28. Qf6+
{[%clk 00:08:03]} {[%emt 00:00:14]} 1-0

[Event "Veteran-SM 65+ 2025"]
[Site "Uppsala, Sweden"]
[Date "2025.07.02"]
[Round "5.3"]
[White "Franchuck, Ivan"]
[Black "Magnussen, Pal"]
[Result "1-0"]
[TimeControl "90 min for 40 move + 30 min with an increment of 30 sec starting move 1"]
[WhiteFideId "14140187"]
[BlackFideId "1711814"]
[WhiteElo "2006"]
[BlackElo "1954"]

1. Nf3 {[%clk 01:28:31]} {[%emt 00:02:28]} Nf6 {[%clk 01:30:28]} {[%emt
00:00:32]} 2. c4 {[%clk 01:28:50]} {[%emt 00:00:12]} c6 {[%clk 01:27:23]}
{[%emt 00:03:36]} 3. g3 {[%clk 01:28:54]} {[%emt 00:00:25]} d5 {[%clk
01:26:57]} {[%emt 00:00:56]} 4. b3 {[%clk 01:28:48]} {[%emt 00:00:36]} g6
{[%clk 01:25:33]} {[%emt 00:01:54]} 5. Bg2 {[%clk 01:29:03]} {[%emt 00:00:15]}
Bg7 {[%clk 01:25:28]} {[%emt 00:00:35]} 6. Bb2 {[%clk 01:29:20]} {[%emt
00:00:13]} dxc4 {[%clk 01:21:54]} {[%emt 00:04:04]} 7. bxc4 {[%clk 01:29:32]}
{[%emt 00:00:18]} Qb6 {[%clk 01:21:29]} {[%emt 00:00:55]} 8. Bd4 {[%clk
01:27:59]} {[%emt 00:02:02]} c5 {[%clk 01:20:57]} {[%emt 00:01:03]} 9. Bc3
{[%clk 01:28:10]} {[%emt 00:00:18]} O-O {[%clk 01:18:56]} {[%emt 00:02:31]} 10.
O-O {[%clk 01:28:08]} {[%emt 00:00:32]} Nc6 {[%clk 01:16:56]} {[%emt 00:02:29]}
11. d3 {[%clk 01:28:25]} {[%emt 00:00:14]} Qc7 {[%clk 01:13:46]} {[%emt
00:03:40]} 12. Nbd2 {[%clk 01:26:52]} {[%emt 00:02:02]} Rb8 {[%clk 01:10:54]}
{[%emt 00:03:23]} 13. Rb1 {[%clk 01:25:47]} {[%emt 00:01:36]} e5 {[%clk
01:09:35]} {[%emt 00:01:50]} 14. Ng5 {[%clk 01:22:41]} {[%emt 00:03:34]} h6
{[%clk 01:03:59]} {[%emt 00:06:07]} 15. Nge4 {[%clk 01:22:44]} {[%emt
00:00:26]} Nd7 {[%clk 00:59:32]} {[%emt 00:04:57]} 16. Nb3 {[%clk 01:21:26]}
{[%emt 00:01:48]} Nd4 {[%clk 00:53:07]} {[%emt 00:06:57]} 17. Bd2 {[%clk
01:19:21]} {[%emt 00:02:34]} a6 {[%clk 00:49:33]} {[%emt 00:04:05]} 18. Nc3
{[%clk 01:19:11]} {[%emt 00:00:38]} Nf6 {[%clk 00:48:42]} {[%emt 00:01:21]} 19.
h3 {[%clk 01:18:03]} {[%emt 00:01:38]} Bd7 {[%clk 00:43:16]} {[%emt 00:05:56]}
20. Kh2 {[%clk 01:17:40]} {[%emt 00:00:52]} Bc6 {[%clk 00:38:14]} {[%emt
00:05:33]} 21. e4 {[%clk 01:14:10]} {[%emt 00:03:59]} Ne6 {[%clk 00:32:06]}
{[%emt 00:06:39]} 22. Nd5 {[%clk 01:11:15]} {[%emt 00:03:25]} Bxd5 {[%clk
00:32:06]} {[%emt 00:00:30]} 23. exd5 {[%clk 01:11:08]} {[%emt 00:00:36]} Nd4
{[%clk 00:30:48]} {[%emt 00:01:49]} 24. Nxd4 {[%clk 01:10:47]} {[%emt
00:00:51]} cxd4 {[%clk 00:30:26]} {[%emt 00:00:52]} 25. Qc1 {[%clk 01:07:24]}
{[%emt 00:03:52]} h5 {[%clk 00:27:52]} {[%emt 00:03:05]} 26. Re1 {[%clk
01:06:39]} {[%emt 00:01:14]} Rfe8 {[%clk 00:26:56]} {[%emt 00:01:27]} 27. c5
{[%clk 01:03:29]} {[%emt 00:03:40]} Nd7 {[%clk 00:26:08]} {[%emt 00:01:19]} 28.
Bb4 {[%clk 01:03:42]} {[%emt 00:00:16]} Rec8 {[%clk 00:24:03]} {[%emt
00:02:36]} 29. d6 {[%clk 01:00:27]} {[%emt 00:03:45]} Qd8 {[%clk 00:24:09]}
{[%emt 00:00:25]} 30. Qa3 {[%clk 01:00:09]} {[%emt 00:00:46]} Qf6 {[%clk
00:21:58]} {[%emt 00:02:42]} 31. Kg1 {[%clk 01:00:12]} {[%emt 00:00:27]} Bh6
{[%clk 00:21:11]} {[%emt 00:01:19]} 32. h4 {[%clk 00:59:49]} {[%emt 00:00:52]}
g5 {[%clk 00:20:54]} {[%emt 00:00:47]} 33. hxg5 {[%clk 00:59:20]} {[%emt
00:00:59]} Qxg5 {[%clk 00:16:46]} {[%emt 00:04:39]} 34. Re2 {[%clk 00:56:22]}
{[%emt 00:03:27]} Qg4 {[%clk 00:15:30]} {[%emt 00:01:46]} 35. Rbe1 {[%clk
00:56:21]} {[%emt 00:00:30]} Qe6 {[%clk 00:11:52]} {[%emt 00:04:10]} 36. Re4
{[%clk 00:55:27]} {[%emt 00:01:23]} Qf5 {[%clk 00:06:48]} {[%emt 00:05:34]} 37.
R1e2 {[%clk 00:55:00]} {[%emt 00:00:57]} Re8 {[%clk 00:06:18]} {[%emt
00:01:01]} 38. Qb3 {[%clk 00:48:34]} {[%emt 00:06:56]} Kg7 {[%clk 00:04:09]}
{[%emt 00:02:39]} 39. Qd1 {[%clk 00:44:43]} {[%emt 00:04:19]} Nf6 {[%clk
00:02:10]} {[%emt 00:02:32]} 40. Rh4 {[%clk 00:44:48]} {[%emt 00:00:25]} Bg5
{[%clk 00:01:35]} {[%emt 00:01:05]} 41. Be4 {[%clk 00:44:24]} {[%emt 00:00:52]}
Qd7 {[%clk 00:30:16]} {[%emt 00:01:50]} 42. Rh1 {[%clk 01:13:51]} {[%emt
00:01:03]} h4 {[%clk 00:28:39]} {[%emt 00:02:07]} 43. Kg2 {[%clk 01:12:01]}
{[%emt 00:02:20]} Rh8 {[%clk 00:25:48]} {[%emt 00:03:22]} 44. Bd2 {[%clk
01:12:00]} {[%emt 00:00:30]} h3+ {[%clk 00:22:34]} {[%emt 00:03:45]} 45. Kf1
{[%clk 01:10:53]} {[%emt 00:01:36]} Qg4 {[%clk 00:21:20]} {[%emt 00:01:46]} 46.
Re1 {[%clk 01:08:34]} {[%emt 00:02:49]} Bxd2 {[%clk 00:18:47]} {[%emt
00:03:03]} 47. Qxd2 {[%clk 01:08:40]} {[%emt 00:00:23]} h2 {[%clk 00:16:52]}
{[%emt 00:02:27]} 48. Qe2 {[%clk 01:07:10]} {[%emt 00:01:58]} Qe6 {[%clk
00:16:19]} {[%emt 00:01:03]} 49. Qf3 {[%clk 01:05:17]} {[%emt 00:02:23]} Nxe4
{[%clk 00:13:36]} {[%emt 00:03:14]} 50. Qxe4 {[%emt 00:00:27]} Qh3+ {[%emt
00:02:33]} 51. Qg2 {[%clk 01:02:02]} {[%emt 00:00:44]} Qf5 {[%clk 00:13:52]}
{[%emt 00:00:14]} 52. Qe4 {[%clk 00:59:43]} {[%emt 00:02:49]} Qh3+ {[%clk
00:14:16]} {[%emt 00:00:07]} 53. Ke2 {[%clk 00:59:48]} {[%emt 00:00:24]} f6
{[%clk 00:14:20]} {[%emt 00:00:27]} 54. Rb1 {[%clk 00:59:39]} {[%emt 00:00:39]}
Qc8 {[%clk 00:10:09]} {[%emt 00:04:41]} 55. Rbc1 {[%clk 00:50:52]} {[%emt
00:09:18]} Qe6 {[%clk 00:09:22]} {[%emt 00:01:17]} 56. Rc2 {[%clk 00:51:06]}
{[%emt 00:00:16]} Qd7 {[%clk 00:09:45]} {[%emt 00:00:08]} 57. Kf3 {[%clk
00:49:23]} {[%emt 00:02:12]} Qa4 {[%clk 00:09:02]} {[%emt 00:01:14]} 58. Rb2
{[%clk 00:49:31]} {[%emt 00:00:22]} Qc6 {[%clk 00:08:55]} {[%emt 00:00:36]} 59.
Qxc6 {[%clk 00:48:14]} {[%emt 00:01:47]} bxc6 {[%clk 00:09:21]} {[%emt
00:00:04]} 60. Rxb8 {[%clk 00:48:16]} {[%emt 00:00:29]} Rxb8 {[%clk 00:09:36]}
{[%emt 00:00:15]} 61. Rxh2 {[%clk 00:48:43]} {[%emt 00:00:02]} Kf7 {[%clk
00:08:09]} {[%emt 00:01:58]} 62. Ke4 {[%clk 00:43:00]} {[%emt 00:06:13]} Ke6
{[%clk 00:07:39]} {[%emt 00:01:00]} 63. g4 {[%clk 00:43:14]} {[%emt 00:00:15]}
Rg8 {[%clk 00:07:03]} {[%emt 00:01:07]} 64. f3 {[%clk 00:43:19]} {[%emt
00:00:26]} Rg7 {[%clk 00:06:55]} {[%emt 00:00:38]} 65. Rh8 {[%clk 00:43:26]}
{[%emt 00:00:22]} Ra7 {[%clk 00:05:40]} {[%emt 00:01:47]} 66. Rc8 {[%clk
00:42:41]} {[%emt 00:01:13]} Kd7 {[%clk 00:06:03]} {[%emt 00:00:07]} 67. Rc7+
{[%emt 00:00:57]} 1-0

[Event "Veteran-SM 65+ 2025"]
[Site "Uppsala, Sweden"]
[Date "2025.07.02"]
[Round "5.4"]
[White "Larsson, Per-Olov"]
[Black "Johansson, Jan"]
[Result "1/2-1/2"]
[TimeControl "90 min for 40 move + 30 min with an increment of 30 sec starting move 1"]
[BlackTitle "IM"]
[WhiteFideId "1717774"]
[BlackFideId "1700103"]
[WhiteElo "1914"]
[BlackElo "2258"]

1. e4 {[%clk 01:30:53]} {[%emt 24:45:32]} e6 {[%clk 01:30:54]} 2. d4 {[%clk
01:31:00]} d5 {[%clk 01:31:19]} 3. Nc3 {[%clk 01:30:54]} Bb4 {[%clk 01:31:39]}
4. exd5 {[%clk 01:30:41]} exd5 {[%clk 01:31:59]} 5. Bd3 {[%clk 01:30:41]} Nc6
{[%clk 01:28:56]} 6. Nge2 {[%clk 01:29:36]} Nge7 {[%clk 01:28:45]} 7. O-O
{[%clk 01:29:03]} Bg4 {[%clk 01:26:30]} 8. f3 {[%clk 01:25:44]} Bf5 {[%clk
01:25:26]} 9. Be3 {[%clk 01:23:05]} Qd7 {[%clk 01:18:44]} 10. Bf2 {[%clk
01:22:19]} O-O {[%clk 01:16:35]} 11. Bxf5 {[%clk 01:16:54]} Qxf5 {[%clk
01:14:09]} 12. Ng3 {[%clk 01:11:41]} Qd7 {[%clk 01:12:38]} 13. Nce2 {[%clk
01:11:00]} Ng6 {[%clk 01:10:34]} 14. c3 {[%clk 01:09:56]} Bd6 {[%clk 01:08:55]}
15. Qd2 {[%clk 01:06:12]} f5 {[%clk 01:05:05]} 16. f4 {[%clk 01:01:43]} Nd8
{[%clk 00:58:32]} 17. Be3 {[%clk 01:00:33]} Ne6 {[%clk 00:57:24]} 18. Nh1
{[%clk 00:53:17]} Rae8 {[%clk 00:54:19]} 19. Rae1 {[%clk 00:51:52]} Qe7 {[%clk
00:48:55]} 20. g3 {[%clk 00:42:44]} Ng5 {[%clk 00:45:02]} 21. Nc1 {[%clk
00:41:28]} Ne4 {[%clk 00:34:20]} 22. Qg2 {[%clk 00:37:42]} Rf6 {[%clk
00:31:49]} 23. Nd3 {[%clk 00:36:41]} Nf8 {[%clk 00:32:03]} 24. Nhf2 {[%clk
00:35:30]} Ne6 {[%clk 00:29:35]} 25. Nxe4 {[%clk 00:31:18]} dxe4 {[%clk
00:25:00]} 26. Nc1 {[%clk 00:24:52]} c6 {[%clk 00:21:59]} 27. Qf2 {[%clk
00:24:04]} Bc7 {[%clk 00:21:49]} 28. Rd1 {[%clk 00:22:27]} Rd8 {[%clk
00:21:52]} 29. Rd2 {[%clk 00:20:38]} Bb6 {[%clk 00:22:00]} 30. Rfd1 {[%clk
00:20:08]} Nc7 {[%clk 00:21:55]} 31. Kg2 {[%clk 00:16:16]} Nd5 {[%clk
00:21:04]} 32. c4 {[%clk 00:12:13]} Nxe3+ {[%clk 00:20:47]} 33. Qxe3 {[%clk
00:12:36]} Rf7 {[%clk 00:20:46]} 34. Ne2 {[%clk 00:12:16]} Qe6 {[%clk
00:20:24]} 35. Qb3 {[%clk 00:09:35]} Rfd7 {[%clk 00:18:19]} 36. Qc3 {[%clk
00:07:39]} h6 {[%clk 00:12:06]} 37. b3 {[%clk 00:06:30]} Kh7 {[%clk 00:11:59]}
38. Qe3 {[%clk 00:06:38]} Qf6 {[%clk 00:11:07]} 39. h4 {[%clk 00:03:14]} Ba5
{[%clk 00:07:55]} 40. Rc2 {[%clk 00:03:28]} Rg8 {[%clk 00:07:58]} 41. Rh1
{[%clk 00:29:51]} Kh8 {[%clk 00:35:56]} 42. a3 {[%clk 00:25:29]} g6 {[%clk
00:31:31]} 43. b4 {[%clk 00:24:04]} Bc7 {[%clk 00:31:39]} 44. Rd2 {[%clk
00:24:14]} Rgd8 {[%clk 00:31:00]} 45. Rhd1 {[%clk 00:22:45]} Kh7 {[%clk
00:30:38]} 46. Nc3 {[%clk 00:21:50]} Bb6 {[%clk 00:29:17]} 1/2-1/2

[Event "Veteran-SM 65+ 2025"]
[Site "Uppsala, Sweden"]
[Date "2025.07.02"]
[Round "5.5"]
[White "Andersson, Anders"]
[Black "Gromark, Per-Olof"]
[Result "1/2-1/2"]
[TimeControl "90 min for 40 move + 30 min with an increment of 30 sec starting move 1"]
[WhiteFideId "1738259"]
[BlackFideId "1722433"]
[WhiteElo "1991"]
[BlackElo "1915"]

1. e4 {[%clk 01:30:53]} {[%emt 00:00:06]} c5 {[%clk 01:30:51]} {[%emt
00:00:10]} 2. Nf3 {[%clk 01:31:09]} {[%emt 00:00:14]} Nc6 {[%clk 01:31:14]}
{[%emt 00:00:07]} 3. Nc3 {[%clk 01:30:20]} {[%emt 00:01:18]} e5 {[%clk
01:30:57]} {[%emt 00:00:47]} 4. Bc4 {[%clk 01:28:55]} {[%emt 00:01:55]} Be7
{[%clk 01:27:26]} {[%emt 00:04:01]} 5. a4 {[%clk 01:27:35]} {[%emt 00:01:50]}
Nf6 {[%clk 01:26:26]} {[%emt 00:01:31]} 6. d3 {[%clk 01:27:27]} {[%emt
00:00:37]} d6 {[%clk 01:25:18]} {[%emt 00:01:38]} 7. h3 {[%clk 01:27:21]}
{[%emt 00:00:36]} O-O {[%clk 01:23:47]} {[%emt 00:02:01]} 8. O-O {[%clk
01:27:35]} {[%emt 00:00:16]} a6 {[%clk 01:19:56]} {[%emt 00:04:22]} 9. Be3
{[%clk 01:23:30]} {[%emt 00:04:35]} Rb8 {[%clk 01:15:59]} {[%emt 00:04:27]} 10.
Nd2 {[%clk 01:18:58]} {[%emt 00:05:02]} Be6 {[%clk 01:10:25]} {[%emt 00:06:05]}
11. Bxe6 {[%clk 01:07:12]} {[%emt 00:12:16]} fxe6 {[%clk 01:10:47]} {[%emt
00:00:08]} 12. f3 {[%clk 01:02:57]} {[%emt 00:04:44]} Nh5 {[%clk 01:06:44]}
{[%emt 00:04:33]} 13. Ne2 {[%clk 01:01:29]} {[%emt 00:01:59]} Nd4 {[%clk
00:55:10]} {[%emt 00:12:03]} 14. Bf2 {[%clk 00:52:33]} {[%emt 00:09:27]} Bh4
{[%clk 00:52:04]} {[%emt 00:03:36]} 15. Nxd4 {[%clk 00:51:14]} {[%emt
00:01:48]} cxd4 {[%clk 00:51:58]} {[%emt 00:00:36]} 16. Qe1 {[%clk 00:44:58]}
{[%emt 00:06:47]} Bxf2+ {[%clk 00:50:54]} {[%emt 00:01:34]} 17. Qxf2 {[%clk
00:44:53]} {[%emt 00:00:35]} Nf4 {[%clk 00:50:14]} {[%emt 00:01:10]} 18. Kh2
{[%clk 00:43:59]} {[%emt 00:01:23]} Rf6 {[%clk 00:45:41]} {[%emt 00:05:03]} 19.
g3 {[%clk 00:42:17]} {[%emt 00:02:12]} Nh5 {[%clk 00:44:32]} {[%emt 00:01:39]}
20. Rg1 {[%clk 00:36:53]} {[%emt 00:05:54]} Qc7 {[%clk 00:43:47]} {[%emt
00:01:15]} 21. Rac1 {[%clk 00:36:30]} {[%emt 00:00:53]} Rbf8 {[%clk 00:43:58]}
{[%emt 00:00:18]} 22. Qe2 {[%clk 00:34:36]} {[%emt 00:02:25]} g6 {[%clk
00:40:16]} {[%emt 00:04:12]} 23. Rgf1 {[%clk 00:34:01]} {[%emt 00:01:04]} Qg7
{[%clk 00:38:13]} {[%emt 00:02:33]} 24. Nc4 {[%clk 00:31:05]} {[%emt 00:03:27]}
Qe7 {[%clk 00:34:26]} {[%emt 00:04:16]} 25. a5 {[%clk 00:29:56]} {[%emt
00:01:39]} R6f7 {[%clk 00:34:26]} {[%emt 00:00:30]} 26. Nd2 {[%clk 00:29:07]}
{[%emt 00:01:20]} Qg5 {[%clk 00:32:05]} {[%emt 00:02:51]} 27. Rg1 {[%clk
00:28:51]} {[%emt 00:00:44]} Qd8 {[%clk 00:28:14]} {[%emt 00:04:21]} 28. Ra1
{[%clk 00:27:24]} {[%emt 00:01:58]} Qc7 {[%clk 00:25:12]} {[%emt 00:03:33]} 29.
Rgc1 {[%clk 00:27:04]} {[%emt 00:00:49]} Qd8 {[%clk 00:23:45]} {[%emt
00:01:56]} 30. Qf2 {[%clk 00:23:55]} {[%emt 00:03:39]} Qf6 {[%clk 00:21:18]}
{[%emt 00:02:16]} 31. Rf1 {[%clk 00:23:41]} {[%emt 00:01:24]} d5 {[%clk
00:16:55]} {[%emt 00:04:55]} 32. Rae1 {[%clk 00:18:16]} {[%emt 00:05:55]} Rc8
{[%clk 00:16:26]} {[%emt 00:00:58]} 33. Rc1 {[%clk 00:17:14]} {[%emt 00:01:32]}
Rfc7 {[%clk 00:14:45]} {[%emt 00:02:12]} 34. Nb3 {[%clk 00:17:09]} {[%emt
00:00:35]} Rf7 {[%clk 00:13:55]} {[%emt 00:01:19]} 35. Nd2 {[%clk 00:14:34]}
{[%emt 00:03:05]} Qg5 {[%clk 00:14:02]} {[%emt 00:00:23]} 36. Rg1 {[%clk
00:13:59]} {[%emt 00:01:05]} Qe3 {[%clk 00:12:20]} {[%emt 00:02:13]} 37. Qg2
{[%clk 00:10:48]} {[%emt 00:03:41]} Rfc7 {[%clk 00:11:06]} {[%emt 00:01:44]} 38.
Nb3 {[%clk 00:09:47]} {[%emt 00:01:31]} dxe4 {[%clk 00:09:19]} {[%emt
00:02:17]} 39. fxe4 {[%clk 00:09:11]} {[%emt 00:01:06]} Rf7 {[%clk 00:08:38]}
{[%emt 00:01:11]} 40. Rge1 {[%clk 00:07:35]} {[%emt 00:02:06]} Qg5 {[%clk
00:05:43]} {[%emt 00:03:25]} 41. Re2 {[%clk 00:02:37]} {[%emt 00:05:28]} Rcf8
{[%clk 00:03:19]} {[%emt 00:02:52]} 42. Nd2 {[%clk 00:30:27]} {[%emt 00:02:41]}
Rc8 {[%clk 00:31:59]} {[%emt 00:01:50]} 43. Nb3 {[%clk 00:29:20]} {[%emt
00:01:37]} Rcf8 {[%clk 00:30:21]} {[%emt 00:01:25]} 1/2-1/2

[Event "Veteran-SM 65+ 2025"]
[Site "Uppsala, Sweden"]
[Date "2025.07.02"]
[Round "5.6"]
[White "Green, Per"]
[Black "Carlsson, Ingvar"]
[Result "1-0"]
[TimeControl "90 min for 40 move + 30 min with an increment of 30 sec starting move 1"]
[WhiteFideId "1703811"]
[BlackFideId "1702670"]
[WhiteElo "1954"]
[BlackElo "1987"]

1. c4 {[%clk 01:30:51]} {[%emt 00:00:08]} e5 {[%clk 01:30:44]} {[%emt
00:00:16]} 2. g3 {[%clk 01:31:04]} {[%emt 00:00:17]} f5 {[%clk 01:30:50]}
{[%emt 00:00:23]} 3. d4 {[%clk 01:30:49]} {[%emt 00:00:46]} exd4 {[%clk
01:30:22]} {[%emt 00:00:57]} 4. Qxd4 {[%clk 01:30:37]} {[%emt 00:00:42]} Nc6
{[%clk 01:30:04]} {[%emt 00:00:48]} 5. Qd1 {[%clk 01:28:58]} {[%emt 00:02:09]}
Nf6 {[%clk 01:30:08]} {[%emt 00:00:27]} 6. Bg2 {[%clk 01:28:37]} {[%emt
00:00:51]} Bb4+ {[%clk 01:30:08]} {[%emt 00:00:30]} 7. Bd2 {[%clk 01:28:25]}
{[%emt 00:00:41]} Qe7 {[%clk 01:30:22]} {[%emt 00:00:16]} 8. Nc3 {[%clk
01:26:43]} {[%emt 00:02:13]} O-O {[%clk 01:29:41]} {[%emt 00:01:11]} 9. Nf3
{[%clk 01:21:40]} {[%emt 00:05:34]} d6 {[%clk 01:28:57]} {[%emt 00:01:13]} 10.
Nd5 {[%clk 01:18:03]} {[%emt 00:04:07]} Nxd5 {[%clk 01:25:02]} {[%emt
00:04:24]} 11. cxd5 {[%clk 01:17:25]} {[%emt 00:01:08]} Bxd2+ {[%clk 01:25:22]}
{[%emt 00:00:09]} 12. Qxd2 {[%clk 01:17:22]} {[%emt 00:00:34]} Ne5 {[%clk
01:22:08]} {[%emt 00:03:43]} 13. Rc1 {[%clk 01:15:50]} {[%emt 00:02:03]} Nxf3+
{[%clk 01:04:41]} {[%emt 00:17:57]} 14. Bxf3 {[%clk 01:15:53]} {[%emt
00:00:27]} Rf7 {[%clk 01:04:52]} {[%emt 00:00:18]} 15. Rc3 {[%clk 01:07:46]}
{[%emt 00:08:38]} a5 {[%clk 00:56:07]} {[%emt 00:09:15]} 16. O-O {[%clk
01:02:44]} {[%emt 00:05:31]} b6 {[%clk 00:56:27]} {[%emt 00:00:10]} 17. Rfc1
{[%clk 01:02:50]} {[%emt 00:00:25]} Ra7 {[%clk 00:54:44]} {[%emt 00:02:13]} 18.
Re3 {[%clk 01:01:17]} {[%emt 00:02:03]} Qd8 {[%clk 00:52:27]} {[%emt 00:02:47]}
19. Qd4 {[%clk 01:01:12]} {[%emt 00:00:34]} Kf8 {[%clk 00:51:15]} {[%emt
00:01:42]} 20. Bh5 {[%clk 01:01:05]} {[%emt 00:00:38]} Re7 {[%clk 00:50:25]}
{[%emt 00:01:20]} 21. Rcc3 {[%clk 01:00:47]} {[%emt 00:00:48]} Bd7 {[%clk
00:50:03]} {[%emt 00:00:51]} 22. Qh4 {[%clk 00:54:57]} {[%emt 00:06:20]} h6
{[%clk 00:26:14]} {[%emt 00:24:19]} 23. Bg6 {[%clk 00:53:03]} {[%emt 00:02:24]}
Be8 {[%clk 00:15:41]} {[%emt 00:11:04]} 24. Qxe7+ {[%clk 00:48:53]} {[%emt
00:04:39]} Qxe7 {[%clk 00:16:00]} {[%emt 00:00:11]} 25. Rxe7 {[%clk 00:49:19]}
{[%emt 00:00:05]} Bxg6 {[%clk 00:13:01]} {[%emt 00:03:29]} 26. Rcxc7 {[%clk
00:49:35]} {[%emt 00:00:15]} Rxc7 {[%clk 00:13:12]} {[%emt 00:00:18]} 27. Rxc7
{[%clk 00:50:00]} {[%emt 00:00:05]} Bf7 {[%clk 00:13:19]} {[%emt 00:00:23]} 28.
Rd7 {[%clk 00:49:21]} {[%emt 00:01:10]} Bxd5 {[%clk 00:13:36]} {[%emt
00:00:13]} 29. Rxd6 {[%clk 00:47:30]} {[%emt 00:02:20]} Bxa2 {[%clk 00:13:51]}
{[%emt 00:00:14]} 30. Rxb6 {[%clk 00:47:53]} {[%emt 00:00:08]} a4 {[%clk
00:13:37]} {[%emt 00:00:44]} 31. Rb7 {[%clk 00:47:50]} {[%emt 00:00:33]} Kg8
{[%clk 00:13:08]} {[%emt 00:00:59]} 32. f3 {[%clk 00:45:03]} {[%emt 00:03:17]}
Kh7 {[%clk 00:11:35]} {[%emt 00:02:02]} 33. Kf2 {[%clk 00:42:58]} {[%emt
00:02:36]} Kg6 {[%clk 00:11:39]} {[%emt 00:00:26]} 34. Ke3 {[%clk 00:42:37]}
{[%emt 00:00:50]} 1-0